bitfinex-derivatives/quotes_BTCF0:USTF0_20250119
["timestamp","ask_amount","ask_price","bid_price","bid_amount"]
[1737284744333,0.11341315,105090.0,105080.0,0.656]
[1737284744531,0.11341315,105090.0,105080.0,0.66375022]
[1737284744735,0.25584089,105090.0,105080.0,0.66375022]
[1737284744939,0.25584089,105090.0,105080.0,0.6637492]
[1737284745933,0.61664089,105110.0,105080.0,0.6637492]
[1737284746129,0.61664089,105110.0,105090.0,0.3608]
[1737284746329,0.61664089,105110.0,105090.0,0.3685492]
[1737284747430,0.25584089,105110.0,105090.0,0.3685492]
[1737284747636,0.61664089,105110.0,105090.0,0.3685492]
[1737284747837,0.47421315,105110.0,105090.0,0.3685492]
[1737284749346,0.3608,105110.0,105090.0,0.3685492]
[1737284750343,0.3608,105110.0,105090.0,0.36854896]
[1737284751438,0.3608,105110.0,105090.0,0.00774897]
[1737284751642,0.3608,105100.0,105090.0,0.00298037]
[1737284751840,0.4589,105100.0,105090.0,0.00298037]
[1737284752238,0.4589,105100.0,105090.0,0.00298074]
[1737284752444,0.4589,105100.0,105090.0,0.00774993]
[1737284752947,0.0981,105100.0,105090.0,0.00774995]
[1737284753248,0.4589,105100.0,105090.0,0.00774995]
[1737284753548,0.0981,105100.0,105090.0,0.00774995]
[1737284753743,0.4589,105100.0,105090.0,0.00774995]
[1737284754335,0.4589,105100.0,105090.0,0.00774985]
[1737284756243,0.5596,105100.0,105090.0,0.00298071]
[1737284756438,0.5596,105100.0,105090.0,0.0077499]
[1737284756643,0.5596,105100.0,105090.0,0.00298071]
[1737284759253,0.5596,105100.0,105080.0,0.01116327]
[1737284759443,0.3608,105090.0,105080.0,0.00775048]
[1737284760647,0.3608,105090.0,105080.0,0.00298095]
[1737284760954,0.3608,105090.0,105080.0,0.00775049]
[1737284761155,0.5596,105100.0,105080.0,0.00775049]
[1737284762660,0.3608,105090.0,105080.0,0.00775049]
[1737284763158,0.3608,105090.0,105080.0,0.00298095]
[1737284763544,0.3608,105090.0,105080.0,0.00298104]
[1737284766561,0.3608,105090.0,105080.0,0.00775051]
[1737284767346,0.3608,105090.0,105080.0,0.00298104]
[1737284767861,0.3608,105090.0,105080.0,0.00298123]
[1737284768556,0.50322774,105090.0,105080.0,0.00298123]
[1737284772661,0.50322774,105090.0,105080.0,0.00775092]
[1737284772847,0.50322774,105090.0,105080.0,0.01902531]
[1737284774262,0.14242774,105090.0,105080.0,0.01902531]
[1737284774762,0.17091329,105100.0,105080.0,0.67982531]
[1737284775059,0.11414878,105100.0,105090.0,0.3608]
[1737284775257,0.11414878,105100.0,105090.0,0.36556845]
[1737284775561,0.11414878,105100.0,105090.0,0.36854873]
[1737284775953,0.11414878,105100.0,105090.0,0.36854861]
[1737284776153,0.11414878,105100.0,105090.0,0.00774861]
[1737284776154,0.47494878,105100.0,105090.0,0.00774861]
[1737284776460,0.6513,105100.0,105090.0,1.00978863]
[1737284777359,0.6513,105100.0,105090.0,1.00979029]
[1737284777554,0.2905,105100.0,105090.0,0.23603371]
[1737284777749,0.1912,105100.0,105090.0,0.23603371]
[1737284778763,0.1912,105100.0,105090.0,0.29310457]
[1737284778764,0.552,105100.0,105090.0,0.29310457]
[1737284779164,0.1912,105100.0,105090.0,0.29310457]
[1737284779664,0.1912,105100.0,105090.0,0.65390457]
[1737284779864,0.1912,105100.0,105090.0,0.95851825]
[1737284780552,0.0934,105100.0,105090.0,0.95851825]
[1737284781369,0.0934,105100.0,105090.0,1.01363745]
[1737284782068,0.57407644,105120.0,105090.0,1.01363745]
[1737284782259,0.67467644,105120.0,105090.0,1.01363745]
[1737284783162,0.67467644,105120.0,105090.0,1.01363612]
[1737284783668,0.67467644,105120.0,105110.0,0.2283108]
[1737284783967,0.17091329,105140.0,105110.0,0.59685965]
[1737284784162,0.17091329,105140.0,105120.0,0.3608]
[1737284784364,0.17091329,105140.0,105120.0,0.36854885]
[1737284784756,0.5573,105150.0,105120.0,0.36854885]
[1737284784757,0.72821329,105150.0,105120.0,0.36854885]
[1737284785160,0.72821329,105150.0,105120.0,0.3685467]
[1737284785362,0.17091329,105150.0,105130.0,0.3608]
[1737284785565,0.17091329,105150.0,105130.0,0.6581467]
[1737284786563,0.3608,105160.0,105140.0,0.22790465]
[1737284786761,0.3608,105160.0,105140.0,0.23565135]
[1737284788879,0.3608,105160.0,105140.0,0.0077467]
[1737284789164,0.5514,105170.0,105140.0,0.0077467]
[1737284790368,0.3608,105160.0,105140.0,0.0077467]
[1737284790567,0.5514,105170.0,105140.0,0.0077467]
[1737284790769,0.3608,105160.0,105140.0,0.0077467]
[1737284790969,0.5514,105170.0,105140.0,0.00774556]
[1737284791165,0.3608,105160.0,105140.0,0.00774556]
[1737284791471,0.3608,105160.0,105140.0,0.00774562]
[1737284793675,0.3608,105160.0,105140.0,0.00297908]
[1737284794572,0.3608,105150.0,105140.0,0.00297908]
[1737284794769,0.3608,105150.0,105130.0,0.56423014]
[1737284794968,0.3608,105150.0,105130.0,0.56720938]
[1737284795569,0.3608,105150.0,105130.0,0.56720942]
[1737284797181,0.3608,105150.0,105140.0,0.0947]
[1737284797370,0.3608,105160.0,105140.0,0.09767928]
[1737284798081,0.3608,105160.0,105140.0,0.0947]
[1737284798577,0.3608,105160.0,105140.0,0.09767916]
[1737284798782,0.3608,105160.0,105140.0,0.0947]
[1737284799166,0.3608,105160.0,105140.0,0.09767914]
[1737284799373,0.3608,105160.0,105140.0,0.0947]
[1737284799685,0.3608,105160.0,105140.0,0.09767915]
[1737284803276,0.3608,105150.0,105140.0,0.00297915]
[1737284803768,0.3608,105160.0,105140.0,0.00297915]
[1737284804578,0.3608,105160.0,105130.0,0.56423014]
[1737284804885,0.3608,105160.0,105130.0,0.20640927]
[1737284805071,0.3608,105160.0,105130.0,0.56720927]
[1737284805271,0.69341328,105170.0,105130.0,0.56720927]
[1737284805581,0.69341328,105170.0,105140.0,0.3608]
[1737284805783,0.23671328,105170.0,105160.0,0.3608]
[1737284805969,0.23671328,105170.0,105160.0,0.36377913]
[1737284806783,0.62771329,105180.0,105160.0,0.36377854]
[1737284806784,0.50281328,105180.0,105160.0,0.36377854]
[1737284807079,0.50281328,105180.0,105160.0,0.54827854]
[1737284809984,0.50281328,105180.0,105160.0,0.36377854]
[1737284810386,0.51041328,105180.0,105160.0,0.36377854]
[1737284810586,0.51041328,105180.0,105160.0,0.36377853]
[1737284812181,0.14201328,105170.0,105160.0,0.36377853]
[1737284813086,0.3608,105170.0,105160.0,0.00297853]
[1737284813389,0.4588,105170.0,105160.0,0.00297853]
[1737284813584,0.4588,105170.0,105150.0,0.22790465]
[1737284813784,0.5477,105160.0,105150.0,0.23088388]
[1737284813985,0.1869,105160.0,105150.0,0.23088388]
[1737284814186,0.5477,105160.0,105150.0,0.23088388]
[1737284814382,0.5477,105160.0,105150.0,0.00297923]
[1737284815090,0.5477,105160.0,105150.0,0.00297912]
[1737284815478,0.69031664,105160.0,105150.0,0.00297912]
[1737284816589,0.23641664,105160.0,105150.0,0.36377908]
[1737284816783,0.14261664,105160.0,105150.0,0.36377908]
[1737284816986,0.31375661,105160.0,105150.0,0.55547908]
[1737284817690,0.31375661,105160.0,105150.0,0.56650752]
[1737284818286,0.70171664,105180.0,105150.0,0.79441217]
[1737284818485,0.70171664,105180.0,105160.0,0.3608]
[1737284818686,0.70171664,105180.0,105160.0,0.4596785]
[1737284818895,0.24961664,105180.0,105160.0,0.4596785]
[1737284819090,0.15021664,105180.0,105160.0,0.4596785]
[1737284819303,0.15021664,105180.0,105170.0,0.3608]
[1737284819591,0.15021664,105180.0,105170.0,1.8637785]
[1737284819893,0.15021664,105180.0,105170.0,0.3637785]
[1737284820290,0.15021664,105180.0,105170.0,1.5029785]
[1737284820497,0.15021664,105180.0,105170.0,1.8637785]
[1737284821093,0.15021664,105180.0,105170.0,0.3637785]
[1737284821488,0.15021664,105180.0,105170.0,1.8637785]
[1737284821793,0.0076,105180.0,105170.0,2.09168315]
[1737284822094,0.0076,105180.0,105170.0,0.59168315]
[1737284822295,0.0076,105180.0,105170.0,0.59168255]
[1737284823285,0.1,105200.0,105170.0,0.59168255]
[1737284823489,0.1,105200.0,105190.0,0.3608]
[1737284823689,0.1,105200.0,105190.0,0.3637779]
[1737284824596,0.10278,105200.0,105190.0,0.3637779]
[1737284825294,0.10278,105200.0,105190.0,0.8191779]
[1737284825700,0.0086,105210.0,105190.0,0.8191779]
[1737284825999,0.0086,105210.0,105200.0,0.3608]
[1737284826290,0.0086,105210.0,105200.0,0.3637779]
[1737284826496,0.0086,105210.0,105200.0,0.4596779]
[1737284826694,0.0086,105210.0,105200.0,0.7450664]
[1737284826997,0.5591,105240.0,105200.0,0.7450664]
[1737284827300,0.0968,105230.0,105210.0,0.3608]
[1737284827496,0.0968,105230.0,105210.0,0.3637779]
[1737284827796,0.0968,105230.0,105210.0,0.4639779]
[1737284828188,0.0968,105230.0,105210.0,0.69045475]
[1737284829194,0.0968,105230.0,105210.0,0.4639779]
[1737284829497,0.0968,105230.0,105210.0,0.46397692]
[1737284829697,0.4576,105230.0,105210.0,0.00297692]
[1737284829899,0.0968,105230.0,105210.0,0.00297709]
[1737284831492,0.0968,105230.0,105210.0,0.36377703]
[1737284831693,0.0968,105230.0,105210.0,0.37492433]
[1737284832103,0.461,105240.0,105210.0,0.37492433]
[1737284832394,0.461,105240.0,105220.0,0.5567]
[1737284832600,0.461,105240.0,105220.0,0.55967703]
[1737284833195,0.461,105240.0,105220.0,0.00297703]
[1737284833391,0.3608,105230.0,105220.0,0.00297703]
[1737284834096,0.36343,105230.0,105220.0,0.00297703]
[1737284835303,0.36343,105230.0,105210.0,0.0111473]
[1737284835599,0.0953,105220.0,105210.0,0.00297723]
[1737284836803,0.00263,105230.0,105210.0,0.36377723]
[1737284837007,0.00263,105230.0,105220.0,0.3608]
[1737284837193,0.00263,105230.0,105220.0,0.36377723]
[1737284837998,0.00263,105230.0,105220.0,1.86377672]
[1737284838700,0.0076,105240.0,105220.0,0.36377672]
[1737284838904,0.00142581,105260.0,105230.0,0.5575]
[1737284839105,0.00142581,105260.0,105250.0,0.7216]
[1737284839406,0.00142581,105260.0,105250.0,0.72457561]
[1737284840301,0.00891581,105260.0,105250.0,0.72457561]
[1737284842090,0.00891581,105260.0,105250.0,0.00297561]
[1737284842302,0.00891581,105260.0,105250.0,0.36377561]
[1737284844002,0.00891581,105260.0,105250.0,0.37486415]
[1737284845001,0.00891581,105260.0,105250.0,0.37486411]
[1737284845602,0.00891581,105260.0,105250.0,0.37486414]
[1737284847208,0.00891581,105260.0,105250.0,0.37486421]
[1737284849709,0.00891581,105260.0,105250.0,0.54431656]
[1737284851005,0.00891581,105260.0,105250.0,0.60134107]
[1737284851916,0.00891581,105260.0,105250.0,2.10134107]
[1737284852417,0.2921,105290.0,105250.0,2.10134107]
[1737284852605,0.1943,105290.0,105270.0,0.3608]
[1737284852812,0.1943,105290.0,105270.0,0.36377568]
[1737284853903,0.5551,105290.0,105270.0,0.00297568]
[1737284854108,0.3608,105280.0,105270.0,0.00297568]
[1737284854314,0.458,105280.0,105270.0,0.00297568]
[1737284854512,0.458,105280.0,105270.0,0.39888124]
[1737284854513,0.3608,105280.0,105270.0,0.39888124]
[1737284854711,0.5551,105290.0,105270.0,0.39888124]
[1737284855114,0.5551,105290.0,105270.0,0.39888103]
[1737284855507,0.5551,105290.0,105270.0,0.17240418]
[1737284856411,0.5551,105290.0,105270.0,0.1832593]
[1737284856810,0.3608,105280.0,105270.0,0.1832593]
[1737284857118,0.3608,105280.0,105270.0,0.18325953]
[1737284857819,0.3608,105280.0,105250.0,0.75670556]
[1737284858018,0.3608,105260.0,105250.0,0.39590556]
[1737284858212,0.3608,105260.0,105250.0,0.40641442]
[1737284858413,0.4599,105260.0,105250.0,0.40641442]
[1737284858919,0.4599,105260.0,105250.0,0.01050886]
[1737284859118,0.4599,105260.0,105240.0,0.53022871]
[1737284859619,0.3608,105250.0,105240.0,0.16942871]
[1737284859810,0.3608,105250.0,105240.0,0.18014125]
[1737284860923,0.4526,105250.0,105240.0,0.18014125]
[1737284861220,0.0918,105250.0,105240.0,0.54094125]
[1737284861422,0.0918,105250.0,105240.0,0.37151254]
[1737284862519,0.0918,105250.0,105240.0,0.54094125]
[1737284863612,0.0918,105250.0,105240.0,0.37151254]
[1737284864722,0.0918,105250.0,105240.0,2.54180301]
[1737284865822,0.4526,105250.0,105240.0,2.18100301]
[1737284868116,0.0918,105250.0,105240.0,2.54180301]
[1737284869326,0.3608,105270.0,105240.0,2.54180301]
[1737284869526,0.3608,105270.0,105250.0,0.5528]
[1737284869826,0.14261664,105260.0,105250.0,0.6461]
[1737284870822,0.14261664,105260.0,105250.0,0.64907584]
[1737284871014,0.1139187,105260.0,105250.0,0.64907584]
[1737284871218,0.1139187,105260.0,105250.0,0.6461]
[1737284871828,0.1139187,105260.0,105250.0,0.6490756]
[1737284872125,0.1139187,105260.0,105250.0,0.2882756]
[1737284872325,0.1139187,105260.0,105250.0,0.0029756]
[1737284872526,0.4747187,105260.0,105250.0,0.0029756]
[1737284872727,0.6646187,105260.0,105240.0,0.01071254]
[1737284872919,0.4595,105250.0,105230.0,0.5536]
[1737284873121,0.3608,105240.0,105220.0,0.8586644]
[1737284873326,0.3608,105240.0,105220.0,0.86164101]
[1737284873627,0.3608,105240.0,105220.0,0.35091929]
[1737284873828,0.3608,105240.0,105220.0,0.70874268]
[1737284874027,0.3608,105240.0,105220.0,0.80824268]
[1737284874238,0.3608,105240.0,105220.0,0.81121945]
[1737284874529,0.3608,105240.0,105220.0,0.45041945]
[1737284874727,0.3608,105240.0,105220.0,0.82173382]
[1737284874920,0.3608,105240.0,105220.0,0.81875705]
[1737284875123,0.11393739,105230.0,105220.0,0.23098618]
[1737284875922,0.11393739,105230.0,105220.0,0.59178618]
[1737284876327,0.50341664,105240.0,105220.0,0.59178618]
[1737284876815,0.50341664,105240.0,105220.0,0.59476285]
[1737284877224,0.50341664,105240.0,105220.0,0.23396285]
[1737284877528,0.50341664,105240.0,105220.0,0.13346285]
[1737284877722,0.50341664,105240.0,105220.0,0.13346303]
[1737284877923,0.3608,105230.0,105220.0,0.03396303]
[1737284878428,0.3608,105230.0,105220.0,0.03098618]
[1737284878629,0.47466889,105230.0,105220.0,0.03098618]
[1737284879328,0.47466889,105230.0,105220.0,0.03396306]
[1737284879733,0.50341664,105230.0,105220.0,0.03396306]
[1737284880230,0.14261664,105230.0,105220.0,0.03396306]
[1737284880833,0.14261664,105230.0,105220.0,0.03396297]
[1737284881223,0.14261664,105230.0,105220.0,1.53098618]
[1737284881429,0.23511664,105230.0,105220.0,1.53098618]
[1737284882739,0.59591664,105230.0,105220.0,1.53098618]
[1737284883038,0.69511664,105230.0,105200.0,0.0979]
[1737284883233,0.4516,105220.0,105190.0,0.3608]
[1737284884234,0.4516,105220.0,105190.0,0.36377732]
[1737284884433,0.11380962,105210.0,105190.0,0.36377732]
[1737284884735,0.11380962,105210.0,105190.0,0.37459986]
[1737284884935,0.11380962,105210.0,105200.0,0.1857]
[1737284885126,0.11380962,105210.0,105200.0,0.18867732]
[1737284885329,0.11380962,105210.0,105200.0,0.00297732]
[1737284885532,0.47460962,105210.0,105200.0,0.00297732]
[1737284886328,0.50341664,105210.0,105200.0,0.00297768]
[1737284887536,0.3608,105210.0,105200.0,0.00297768]
[1737284890040,0.11376414,105220.0,105200.0,0.36377768]
[1737284890341,0.11376414,105220.0,105210.0,0.0924]
[1737284890541,0.11376414,105220.0,105210.0,0.00297768]
[1737284891539,0.3608,105220.0,105210.0,0.00297768]
[1737284892631,0.4514,105220.0,105210.0,0.00297768]
[1737284893438,0.4514,105220.0,105190.0,0.10322254]
[1737284893639,0.4543,105210.0,105190.0,0.10322254]
[1737284894239,0.0935,105210.0,105190.0,0.46402254]
[1737284894640,0.20726414,105210.0,105190.0,0.46402254]
[1737284895552,0.0935,105210.0,105190.0,0.46699994]
[1737284895839,0.0935,105210.0,105190.0,0.46699988]
[1737284897843,0.4543,105210.0,105190.0,0.46699988]
[1737284898147,0.0935,105210.0,105190.0,0.46699988]
[1737284898952,0.56806414,105210.0,105190.0,0.37459988]
[1737284899248,0.29766414,105210.0,105190.0,0.37459988]
[1737284899651,0.65846414,105210.0,105190.0,0.37459988]
[1737284900349,0.65846414,105210.0,105190.0,0.37460009]
[1737284901840,0.5447,105210.0,105190.0,0.37460009]
[1737284902537,0.1839,105210.0,105190.0,0.37460009]
[1737284903135,0.29766414,105210.0,105190.0,0.37460009]
[1737284903842,0.20726414,105210.0,105190.0,0.37460009]
[1737284905136,0.11376414,105210.0,105190.0,0.37460009]
[1737284905341,0.11376414,105210.0,105200.0,0.4538]
[1737284905541,0.05395274,105210.0,105200.0,0.45677683]
[1737284905746,0.14261664,105220.0,105200.0,1.95677683]
[1737284905949,0.14261664,105220.0,105210.0,0.5473]
[1737284906150,0.14404263,105240.0,105210.0,0.55027683]
[1737284906448,0.14404263,105240.0,105230.0,0.3608]
[1737284906650,0.14404263,105240.0,105230.0,0.36377683]
[1737284907550,0.00142599,105240.0,105230.0,0.36377683]
[1737284908552,0.36222599,105240.0,105230.0,0.00297683]
[1737284908851,0.00142599,105240.0,105230.0,0.00297683]
[1737284909441,0.36222599,105240.0,105230.0,0.00297673]
[1737284909642,0.50484263,105240.0,105230.0,0.00297673]
[1737284909846,0.14404263,105240.0,105230.0,0.00297673]
[1737284910251,0.14404263,105240.0,105230.0,0.01378203]
[1737284910448,0.36222599,105240.0,105230.0,0.01378203]
[1737284910648,0.36222599,105240.0,105230.0,0.01061071]
[1737284910955,0.36222599,105240.0,105220.0,0.3608]
[1737284911246,0.53313601,105240.0,105220.0,0.3608]
[1737284911451,0.17233601,105240.0,105220.0,0.37146802]
[1737284912151,0.14241691,105230.0,105220.0,0.37146802]
[1737284913749,0.50321691,105230.0,105220.0,0.01066802]
[1737284913949,0.50321691,105230.0,105210.0,0.5473]
[1737284914553,0.50321691,105230.0,105210.0,0.4566]
[1737284914751,0.50321691,105230.0,105210.0,0.3608]
[1737284915051,0.14241691,105220.0,105210.0,0.3608]
[1737284915946,0.14241691,105220.0,105200.0,0.1913]
[1737284916142,0.14241691,105220.0,105210.0,0.3608]
[1737284917051,0.3608,105220.0,105200.0,0.10376991]
[1737284917245,0.0941,105210.0,105200.0,0.10376991]
[1737284917652,0.0941,105210.0,105200.0,0.01076991]
[1737284917953,0.0941,105210.0,105190.0,2.2979036]
[1737284918653,0.0941,105210.0,105190.0,1.9578]
[1737284918953,0.0941,105210.0,105190.0,1.8608]
[1737284919446,0.4549,105210.0,105190.0,1.51054535]
[1737284920446,0.4549,105210.0,105190.0,0.01054535]
[1737284920757,0.59731691,105210.0,105180.0,0.55282596]
[1737284922246,0.59731691,105210.0,105180.0,0.56360945]
[1737284922655,0.59731691,105210.0,105180.0,0.56658726]
[1737284925063,0.59731691,105210.0,105180.0,0.56658724]
[1737284928157,0.4549,105210.0,105180.0,0.56658724]
[1737284929556,0.59731691,105210.0,105180.0,0.56658724]
[1737284930858,0.3608,105190.0,105180.0,0.2057873]
[1737284931257,0.3608,105190.0,105180.0,0.0151873]
[1737284931564,0.4589,105190.0,105180.0,0.0151873]
[1737284932056,0.5587,105190.0,105180.0,0.0151873]
[1737284932271,0.70111691,105190.0,105180.0,0.0151873]
[1737284932458,0.70111691,105190.0,105180.0,0.01376134]
[1737284932853,0.70111691,105190.0,105180.0,0.00297785]
[1737284933561,0.72961002,105190.0,105180.0,0.00297785]
[1737284935664,0.62981002,105190.0,105180.0,0.00297785]
[1737284935858,0.60102622,105190.0,105180.0,0.00297785]
[1737284936857,0.60102622,105190.0,105180.0,0.00297836]
[1737284938765,0.60102622,105190.0,105180.0,0.00297831]
[1737284939165,0.60102622,105190.0,105170.0,0.01073165]
[1737284939365,0.3608,105180.0,105170.0,0.00297831]
[1737284940073,0.4589,105190.0,105170.0,0.00297831]
[1737284940469,0.3608,105190.0,105170.0,0.00297831]
[1737284940675,0.3608,105200.0,105170.0,0.36377831]
[1737284941178,0.6909528,105210.0,105180.0,0.3608]
[1737284941370,0.86186282,105210.0,105190.0,0.288]
[1737284941562,0.86186282,105210.0,105190.0,0.29097831]
[1737284942467,0.54882658,105210.0,105190.0,0.29097831]
[1737284942670,0.54882658,105210.0,105190.0,0.65177831]
[1737284942671,0.00142658,105210.0,105190.0,0.65177831]
[1737284942875,0.14212622,105220.0,105200.0,0.3608]
[1737284943178,0.14212622,105220.0,105200.0,0.36377831]
[1737284943974,0.14212622,105220.0,105200.0,0.36377728]
[1737284944163,0.5513,105230.0,105200.0,0.36377728]
[1737284944361,0.3608,105220.0,105200.0,0.00297728]
[1737284944979,0.3608,105210.0,105200.0,0.00297728]
[1737284945464,0.3608,105220.0,105200.0,0.00297728]
[1737284945869,0.3608,105220.0,105200.0,0.00297758]
[1737284946376,0.3608,105210.0,105200.0,0.00297761]
[1737284947372,0.50292622,105220.0,105200.0,0.00297761]
[1737284947572,0.14212622,105220.0,105200.0,0.36377761]
[1737284947770,0.17091002,105210.0,105200.0,0.36377761]
[1737284948681,0.64102599,105240.0,105200.0,0.36854094]
[1737284948878,0.14240588,105210.0,105200.0,0.36854094]
[1737284949074,0.39324211,105230.0,105200.0,0.72934094]
[1737284949271,0.39324211,105230.0,105220.0,0.7216]
[1737284949471,0.25667527,105240.0,105220.0,0.72934094]
[1737284949676,0.25667527,105240.0,105230.0,0.5573]
[1737284949876,0.25667527,105240.0,105230.0,0.56504094]
[1737284950083,0.6488,105260.0,105230.0,0.56504094]
[1737284950084,0.87656311,105260.0,105230.0,0.56504094]
[1737284950782,0.87656311,105260.0,105230.0,0.56027761]
[1737284951183,0.6488,105260.0,105230.0,0.56027761]
[1737284951379,0.6488,105260.0,105230.0,0.10297761]
[1737284951380,0.3608,105240.0,105230.0,0.10297761]
[1737284951883,0.3608,105240.0,105230.0,0.00297666]
[1737284953481,0.3608,105240.0,105210.0,0.6494]
[1737284953787,0.3608,105240.0,105210.0,0.67073051]
[1737284954175,0.3608,105240.0,105210.0,0.67073049]
[1737284956185,0.3608,105250.0,105210.0,0.67073049]
[1737284956186,0.6488,105260.0,105230.0,0.3608]
[1737284956487,0.6488,105260.0,105230.0,0.36853953]
[1737284957377,0.6488,105260.0,105240.0,0.0946]
[1737284957585,0.6488,105260.0,105240.0,0.1936389]
[1737284958186,0.6488,105260.0,105240.0,0.18887679]
[1737284959483,0.288,105260.0,105240.0,0.54967679]
[1737284959987,0.288,105260.0,105240.0,0.55443872]
[1737284960396,0.288,105260.0,105240.0,0.55443861]
[1737284961283,0.288,105260.0,105240.0,0.55443789]
[1737284961987,0.36222568,105290.0,105250.0,0.3608]
[1737284962185,0.1005,105280.0,105260.0,0.3608]
[1737284962389,0.1005,105280.0,105260.0,0.36377611]
[1737284963291,0.1005,105280.0,105260.0,0.36377555]
[1737284966385,0.19072568,105290.0,105270.0,0.3608]
[1737284966583,0.19072568,105290.0,105280.0,0.3608]
[1737284966784,0.19072568,105290.0,105280.0,0.36377525]
[1737284967489,0.19072568,105290.0,105280.0,0.3608]
[1737284968085,0.19072568,105290.0,105270.0,0.0992]
[1737284968290,0.19072568,105290.0,105280.0,0.3608]
[1737284968594,0.19072568,105290.0,105280.0,0.00297531]
[1737284968788,0.55152568,105290.0,105280.0,0.00297531]
[1737284968985,0.55152568,105290.0,105260.0,0.3608]
[1737284969180,0.55152568,105290.0,105260.0,0.38208169]
[1737284969389,0.55152568,105290.0,105270.0,0.3608]
[1737284969593,0.55152568,105290.0,105270.0,0.36377549]
[1737284970183,0.55152568,105290.0,105270.0,0.36853609]
[1737284970390,0.66478485,105290.0,105270.0,0.36853609]
[1737284972995,0.11325917,105280.0,105270.0,0.36853609]
[1737284975392,0.11325917,105280.0,105270.0,0.00773609]
[1737284975593,0.11325917,105280.0,105270.0,0.36853609]
[1737284976887,0.11325917,105280.0,105270.0,0.36853604]
[1737284977796,0.55152568,105290.0,105270.0,0.36853604]
[1737284978996,0.3608,105280.0,105270.0,0.00773604]
[1737284979199,0.3608,105280.0,105260.0,0.01354541]
[1737284979400,0.3608,105280.0,105250.0,0.39523946]
[1737284979401,0.4578,105270.0,105250.0,0.39523946]
[1737284979597,0.4538,105260.0,105250.0,0.39523946]
[1737284980101,0.4538,105260.0,105250.0,0.40866915]
[1737284980601,0.4538,105260.0,105250.0,0.01342969]
[1737284980802,0.4538,105260.0,105240.0,0.16930279]
[1737284981194,0.3608,105250.0,105240.0,0.16930279]
[1737284982304,0.4554,105250.0,105240.0,0.18296037]
[1737284982494,0.4554,105250.0,105240.0,0.01365758]
[1737284982695,0.4554,105250.0,105230.0,0.0014251]
[1737284983391,0.0965,105240.0,105230.0,0.0014251]
[1737284984101,0.0965,105240.0,105230.0,0.01481055]
[1737284984597,0.4573,105240.0,105230.0,0.01481055]
[1737284985393,0.71259293,105240.0,105230.0,0.01481055]
[1737284985996,0.71259293,105240.0,105230.0,0.01338545]
[1737284986198,0.71259293,105240.0,105200.0,0.81092846]
[1737284986403,0.458,105230.0,105200.0,0.81092846]
[1737284986602,0.458,105230.0,105200.0,0.64162567]
[1737284987703,0.57167565,105230.0,105200.0,0.64162567]
[1737284988094,0.3608,105210.0,105200.0,0.01494058]
[1737284988612,0.4579,105210.0,105200.0,0.01494058]
[1737284989211,0.4579,105210.0,105200.0,0.01970467]
[1737284989405,0.0971,105210.0,105200.0,0.38050467]
[1737284990409,0.0971,105210.0,105200.0,0.01970415]
[1737284990702,0.0971,105210.0,105200.0,0.38050415]
[1737284991099,0.0971,105210.0,105200.0,0.38348138]
[1737284991300,0.21157565,105220.0,105200.0,0.38348138]
[1737284991601,0.0979,105220.0,105200.0,0.38377395]
[1737284992506,0.0979,105220.0,105200.0,0.38348138]
[1737284992809,0.0979,105220.0,105200.0,0.55278417]
[1737284993008,0.0979,105220.0,105200.0,0.55278412]
[1737284993803,0.4587,105220.0,105200.0,0.19198412]
[1737284994008,0.0979,105220.0,105200.0,0.19198412]
[1737284994403,0.0979,105220.0,105200.0,0.19198463]
[1737284994706,0.0979,105220.0,105200.0,0.55278463]
[1737284995095,0.0979,105220.0,105200.0,0.19198463]
[1737284995301,0.0979,105220.0,105200.0,0.02268184]
[1737284995904,0.4587,105220.0,105200.0,0.02268184]
[1737284996702,0.4587,105220.0,105200.0,0.19198463]
[1737284997109,0.4587,105220.0,105200.0,0.19198451]
[1737284998111,0.4587,105220.0,105200.0,0.18424337]
[1737284998612,0.4587,105220.0,105200.0,0.19198445]
[1737284998814,0.4587,105220.0,105200.0,0.02268166]
[1737284998999,0.4587,105220.0,105200.0,0.38348166]
[1737284999409,0.4587,105220.0,105200.0,0.02268166]
[1737284999712,0.4587,105220.0,105200.0,0.38348166]
[1737285000016,0.4587,105220.0,105200.0,0.02268166]
[1737285000215,0.4587,105220.0,105200.0,0.38348166]
[1737285000508,0.4587,105220.0,105200.0,0.02297104]
[1737285000715,0.4587,105220.0,105200.0,0.38348166]
[1737285000906,0.4587,105220.0,105200.0,0.38377104]
[1737285001802,0.4587,105220.0,105200.0,0.383771]
[1737285002008,0.4587,105220.0,105200.0,0.38348153]
[1737285003107,0.4587,105220.0,105200.0,0.38377107]
[1737285003508,0.5512,105230.0,105200.0,0.38377107]
[1737285006210,0.5512,105230.0,105210.0,0.0942]
[1737285006412,0.5512,105230.0,105210.0,0.10223049]
[1737285006610,0.5512,105230.0,105210.0,0.10194095]
[1737285007117,0.5512,105230.0,105210.0,0.10194083]
[1737285009011,0.5512,105230.0,105210.0,0.00774083]
[1737285009414,0.5512,105230.0,105220.0,0.16930279]
[1737285009719,0.5512,105230.0,105220.0,0.1770437]
[1737285010615,0.5512,105230.0,105220.0,0.17733501]
[1737285010820,0.66487565,105230.0,105220.0,0.1770437]
[1737285011211,0.66487565,105230.0,105220.0,0.17733501]
[1737285011818,0.66487565,105230.0,105220.0,0.1770437]
[1737285011819,0.5512,105230.0,105220.0,0.1770437]
[1737285012616,0.5512,105230.0,105220.0,0.17733501]
[1737285013017,0.66487565,105230.0,105220.0,0.40327168]
[1737285013619,0.66487565,105230.0,105220.0,0.40298037]
[1737285015927,0.69323376,105230.0,105220.0,0.1770437]
[1737285016526,0.99323376,105230.0,105210.0,0.22593667]
[1737285016727,0.3608,105220.0,105210.0,0.22891424]
[1737285016917,0.3608,105220.0,105210.0,0.22593667]
[1737285017526,0.3608,105220.0,105210.0,0.32023667]
[1737285017728,0.72110661,105230.0,105210.0,0.68103667]
[1737285018025,0.53070661,105230.0,105210.0,0.77663667]
[1737285018226,0.53070661,105230.0,105220.0,0.0999]
[1737285018532,0.4750025,105230.0,105220.0,0.60962105]
[1737285018826,0.4750025,105230.0,105220.0,0.50972105]
[1737285019017,0.4750025,105230.0,105220.0,0.50972095]
[1737285019819,0.8358025,105230.0,105220.0,0.2262289]
[1737285020325,0.8358025,105230.0,105220.0,0.2394099]
[1737285020826,0.86435313,105230.0,105220.0,0.2394099]
[1737285021522,0.86435313,105230.0,105220.0,0.23911767]
[1737285021829,0.86435313,105230.0,105220.0,0.2394099]
[1737285022519,0.86435313,105230.0,105220.0,0.23911767]